[Event "Titled Tuesday Blitz December 27 Early 2022"]
[White "Sadovsky, Artem"]
[Black "Torres Dominguez, David"]
[WhiteFideId "4155840"]
[BlackFideId "2220857"]
[WhiteElo "2276"]
[BlackElo "1994"]
[Result "1-0"]
[Round "09"]
[TimeControl "180+2"]
[Date "2022.12.27"]
[WhiteClock "0:00:11"]
[BlackClock "0:00:01"]

1. Nf3 {[%clk 0:02:23]}  d5 {[%clk 0:02:57]} 2. e3 {[%clk 0:02:24]}  Nf6 {[%clk 0:02:55]} 3. c4 {[%clk 0:02:25]}  dxc4 {[%clk 0:02:54]} 4. Bxc4 {[%clk 0:02:15]}  c6 {[%clk 0:02:47]} 5. Nc3 {[%clk 0:02:11]}  b5 {[%clk 0:02:34]} 6. Bb3 {[%clk 0:02:07]}  b4 {[%clk 0:02:29]} 7. Ne2 {[%clk 0:02:04]}  e6 {[%clk 0:02:26]} 8. O-O {[%clk 0:02:04]}  Be7 {[%clk 0:02:21]} 9. d4 {[%clk 0:02:04]}  O-O {[%clk 0:02:15]} 10. Nf4 {[%clk 0:02:04]}  a5 {[%clk 0:02:05]} 11. Nd3 {[%clk 0:02:02]}  Nbd7 {[%clk 0:01:58]} 12. Nfe5 {[%clk 0:01:58]}  Nxe5 {[%clk 0:01:48]} 13. Nxe5 {[%clk 0:01:59]}  c5 {[%clk 0:01:44]} 14. Nc6 {[%clk 0:01:58]}  Qe8 {[%clk 0:01:37]} 15. Nxe7+ {[%clk 0:01:57]}  Qxe7 {[%clk 0:01:36]} 16. dxc5 {[%clk 0:01:55]}  Qxc5 {[%clk 0:01:35]} 17. Qf3 {[%clk 0:01:55]}  Bd7 {[%clk 0:01:23]} 18. e4 {[%clk 0:01:50]}  Bc6 {[%clk 0:01:16]} 19. Be3 {[%clk 0:01:39]}  Qe5 {[%clk 0:01:16]} 20. Qf4 {[%clk 0:01:16]}  Qxf4 {[%clk 0:01:09]} 21. Bxf4 {[%clk 0:01:17]}  Bxe4 {[%clk 0:01:02]} 22. Rac1 {[%clk 0:00:59]}  a4 {[%clk 0:01:02]} 23. Bc4 {[%clk 0:00:19]}  Bd5 {[%clk 0:01:02]} 24. Bd6 {[%clk 0:00:16]}  Rfc8 {[%clk 0:00:57]} 25. Bb5 {[%clk 0:00:16]}  Ne4 {[%clk 0:00:49]} 26. Bxb4 {[%clk 0:00:07]}  Rcb8 {[%clk 0:00:44]} 27. f3 {[%clk 0:00:06]}  Rxb5 {[%clk 0:00:40]} 28. fxe4 {[%clk 0:00:05]}  Rxb4 {[%clk 0:00:25]} 29. exd5 {[%clk 0:00:06]}  exd5 {[%clk 0:00:22]} 30. Rf2 {[%clk 0:00:06]}  Rab8 {[%clk 0:00:16]} 31. Rd2 {[%clk 0:00:07]}  g6 {[%clk 0:00:15]} 32. Rcc2 {[%clk 0:00:05]}  d4 {[%clk 0:00:15]} 33. a3 {[%clk 0:00:05]}  Rb3 {[%clk 0:00:13]} 34. Rxd4 {[%clk 0:00:06]}  Rxb2 {[%clk 0:00:13]} 35. Rxb2 {[%clk 0:00:05]}  Rxb2 {[%clk 0:00:13]} 36. Rxa4 {[%clk 0:00:06]}  Kg7 {[%clk 0:00:13]} 37. h4 {[%clk 0:00:06]}  h5 {[%clk 0:00:13]} 38. Kh2 {[%clk 0:00:07]}  Ra2 {[%clk 0:00:13]} 39. Ra6 {[%clk 0:00:08]}  Kh6 {[%clk 0:00:09]} 40. Kh3 {[%clk 0:00:09]}  Kg7 {[%clk 0:00:07]} 41. g3 {[%clk 0:00:10]}  Ra1 {[%clk 0:00:07]} 42. a4 {[%clk 0:00:10]}  Rh1+ {[%clk 0:00:06]} 43. Kg2 {[%clk 0:00:11]}  Ra1 {[%clk 0:00:07]} 44. a5 {[%clk 0:00:11]}  Ra2+ {[%clk 0:00:06]} 45. Kf3 {[%clk 0:00:12]}  Ra3+ {[%clk 0:00:07]} 46. Kf4 {[%clk 0:00:12]}  Ra4+ {[%clk 0:00:07]} 47. Ke5 {[%clk 0:00:13]}  Ra3 {[%clk 0:00:07]} 48. Rb6 {[%clk 0:00:13]}  Rxg3 {[%clk 0:00:04]} 49. Kf4 {[%clk 0:00:14]}  Ra3 {[%clk 0:00:04]} 50. a6 {[%clk 0:00:15]}  Ra4+ {[%clk 0:00:04]} 51. Ke5 {[%clk 0:00:15]}  f6+ {[%clk 0:00:03]} 52. Ke6 {[%clk 0:00:12]}  g5 {[%clk 0:00:01]} 53. hxg5 {[%clk 0:00:09]}  fxg5 {[%clk 0:00:02]} 54. Kf5 {[%clk 0:00:09]}  g4 {[%clk 0:00:02]} 55. Rb7+ {[%clk 0:00:10]}  Kh6 {[%clk 0:00:01]} 56. Rb6+ {[%clk 0:00:10]}  Kg7 {[%clk 0:00:01]} 57. Kg5 {[%clk 0:00:11]}  Kf7 {[%clk 0:00:01]} 58. Rb7+ {[%clk 0:00:11]} 1-0


[Site "https://www.chess.com"]

[Event "Titled Tuesday Blitz December 27 Early 2022"]
[White "Shahaliyev, Ismayil"]
[Black "Bringas Gomez, Artai"]
[WhiteFideId "13406388"]
[BlackFideId "24534064"]
[WhiteElo "2400"]
[BlackElo "2206"]
[Result "0-1"]
[Round "09"]
[TimeControl "180+2"]
[Date "2022.12.27"]
[WhiteClock "0:00:05"]
[BlackClock "0:00:26"]

1. d4 {[%clk 0:03:00]}  d5 {[%clk 0:02:57]} 2. c4 {[%clk 0:03:00]}  c6 {[%clk 0:02:56]} 3. Nc3 {[%clk 0:02:54]}  e6 {[%clk 0:02:56]} 4. e3 {[%clk 0:02:46]}  Nf6 {[%clk 0:02:54]} 5. Nf3 {[%clk 0:02:46]}  Bd6 {[%clk 0:02:48]} 6. Bd2 {[%clk 0:02:32]}  O-O {[%clk 0:02:48]} 7. Rc1 {[%clk 0:02:30]}  Nbd7 {[%clk 0:02:42]} 8. Bd3 {[%clk 0:02:20]}  dxc4 {[%clk 0:02:40]} 9. Bxc4 {[%clk 0:02:20]}  e5 {[%clk 0:02:41]} 10. O-O {[%clk 0:02:17]}  exd4 {[%clk 0:02:38]} 11. exd4 {[%clk 0:02:15]}  Nb6 {[%clk 0:02:38]} 12. Bb3 {[%clk 0:02:14]}  Bg4 {[%clk 0:02:38]} 13. h3 {[%clk 0:02:14]}  Bh5 {[%clk 0:02:37]} 14. Bg5 {[%clk 0:01:56]}  h6 {[%clk 0:02:34]} 15. Bh4 {[%clk 0:01:56]}  Bf4 {[%clk 0:02:07]} 16. Ra1 {[%clk 0:01:48]}  Qd6 {[%clk 0:01:30]} 17. Qd3 {[%clk 0:00:41]}  Bg6 {[%clk 0:01:25]} 18. Qxg6 {[%clk 0:00:39]}  Nbd5 {[%clk 0:01:06]} 19. Qf5 {[%clk 0:00:32]}  g6 {[%clk 0:01:04]} 20. Qd3 {[%clk 0:00:30]}  g5 {[%clk 0:01:04]} 21. Nxd5 {[%clk 0:00:28]}  cxd5 {[%clk 0:01:03]} 22. Bg3 {[%clk 0:00:24]}  Nh5 {[%clk 0:00:59]} 23. Bc2 {[%clk 0:00:19]}  f5 {[%clk 0:00:56]} 24. Bxf4 {[%clk 0:00:12]}  Nxf4 {[%clk 0:00:53]} 25. Qb3 {[%clk 0:00:13]}  g4 {[%clk 0:00:53]} 26. hxg4 {[%clk 0:00:11]}  fxg4 {[%clk 0:00:54]} 27. Ne5 {[%clk 0:00:12]}  Qe7 {[%clk 0:00:37]} 28. Rae1 {[%clk 0:00:11]}  Qg5 {[%clk 0:00:35]} 29. Qg3 {[%clk 0:00:10]}  h5 {[%clk 0:00:34]} 30. Nf3 {[%clk 0:00:07]}  Qg7 {[%clk 0:00:30]} 31. Nh4 {[%clk 0:00:08]}  Qg5 {[%clk 0:00:28]} 32. Bb3 {[%clk 0:00:07]}  Rae8 {[%clk 0:00:27]} 33. Re5 {[%clk 0:00:04]}  Rxe5 {[%clk 0:00:26]} 34. dxe5 {[%clk 0:00:05]}  Ne2+ {[%clk 0:00:26]} 0-1


[Site "https://www.chess.com"]

[Event "Titled Tuesday Blitz December 27 Early 2022"]
[White "Sharifov, Mekhriddin"]
[Black "Akylbekov, Nasyr"]
[WhiteFideId "14701545"]
[BlackFideId "13800353"]
[WhiteElo "2209"]
[BlackElo "2239"]
[Result "1-0"]
[Round "09"]
[TimeControl "180+2"]
[Date "2022.12.27"]
[WhiteClock "0:01:02"]
[BlackClock "0:01:50"]

1. e4 {[%clk 0:03:00]}  e5 {[%clk 0:02:59]} 2. f4 {[%clk 0:02:59]}  Bc5 {[%clk 0:02:52]} 3. Nf3 {[%clk 0:03:00]}  d6 {[%clk 0:02:52]} 4. Nc3 {[%clk 0:03:00]}  Nc6 {[%clk 0:02:52]} 5. Bc4 {[%clk 0:03:00]}  Bg4 {[%clk 0:02:53]} 6. Na4 {[%clk 0:02:39]}  Nd4 {[%clk 0:02:52]} 7. Nxc5 {[%clk 0:02:38]}  dxc5 {[%clk 0:02:53]} 8. Bxf7+ {[%clk 0:02:37]}  Kf8 {[%clk 0:02:52]} 9. Nxd4 {[%clk 0:02:21]}  Bxd1 {[%clk 0:02:28]} 10. Ne6+ {[%clk 0:02:20]}  Kxf7 {[%clk 0:02:29]} 11. Nxd8+ {[%clk 0:02:21]}  Rxd8 {[%clk 0:02:29]} 12. Kxd1 {[%clk 0:02:22]}  exf4 {[%clk 0:02:30]} 13. Rf1 {[%clk 0:02:14]}  g5 {[%clk 0:02:25]} 14. g3 {[%clk 0:02:10]}  Ne7 {[%clk 0:02:23]} 15. gxf4 {[%clk 0:02:09]}  gxf4 {[%clk 0:02:24]} 16. Rxf4+ {[%clk 0:02:10]}  Ke6 {[%clk 0:02:25]} 17. d3 {[%clk 0:01:57]}  Rhg8 {[%clk 0:02:11]} 18. Be3 {[%clk 0:01:56]}  Rg2 {[%clk 0:02:08]} 19. Bxc5 {[%clk 0:01:48]}  Rxh2 {[%clk 0:02:04]} 20. Rf1 {[%clk 0:01:40]}  Nc6 {[%clk 0:01:54]} 21. Bf2 {[%clk 0:01:05]}  Rf8 {[%clk 0:01:50]} 22. Ke1 {[%clk 0:01:04]}  Nd4 {[%clk 0:01:50]} 23. Bxd4 {[%clk 0:01:02]} 1-0


[Site "https://www.chess.com"]

[Event "Titled Tuesday Blitz December 27 Early 2022"]
[White "Shubenkova, Veronika"]
[Black "Ferreira, Vitor Hugo Vieira"]
[WhiteFideId "44124040"]
[BlackFideId "2119765"]
[WhiteElo "1960"]
[BlackElo "2128"]
[Result "1-0"]
[Round "09"]
[TimeControl "180+2"]
[Date "2022.12.27"]
[WhiteClock "0:00:41"]
[BlackClock "0:00:48"]

1. e4 {[%clk 0:02:54]}  c6 {[%clk 0:02:59]} 2. d4 {[%clk 0:02:54]}  d5 {[%clk 0:02:59]} 3. Nc3 {[%clk 0:02:55]}  dxe4 {[%clk 0:02:59]} 4. Nxe4 {[%clk 0:02:55]}  Nf6 {[%clk 0:02:59]} 5. Nxf6+ {[%clk 0:02:55]}  exf6 {[%clk 0:02:59]} 6. c3 {[%clk 0:02:56]}  Bd6 {[%clk 0:02:59]} 7. Bd3 {[%clk 0:02:55]}  O-O {[%clk 0:03:00]} 8. Nf3 {[%clk 0:02:56]}  Re8+ {[%clk 0:02:59]} 9. Be3 {[%clk 0:02:56]}  Bf4 {[%clk 0:02:59]} 10. Qd2 {[%clk 0:02:55]}  Bxe3 {[%clk 0:02:59]} 11. fxe3 {[%clk 0:02:54]}  Qe7 {[%clk 0:02:59]} 12. Kf2 {[%clk 0:02:52]}  f5 {[%clk 0:02:54]} 13. Rae1 {[%clk 0:02:51]}  g6 {[%clk 0:02:46]} 14. Qc2 {[%clk 0:02:51]}  Nd7 {[%clk 0:02:46]} 15. Rhf1 {[%clk 0:02:50]}  Nf6 {[%clk 0:02:46]} 16. Kg1 {[%clk 0:02:45]}  Be6 {[%clk 0:02:42]} 17. Nd2 {[%clk 0:02:42]}  Bd5 {[%clk 0:02:38]} 18. c4 {[%clk 0:02:41]}  Be4 {[%clk 0:02:35]} 19. Bxe4 {[%clk 0:02:41]}  Nxe4 {[%clk 0:02:30]} 20. Nf3 {[%clk 0:02:36]}  Rad8 {[%clk 0:02:26]} 21. Ne5 {[%clk 0:02:32]}  c5 {[%clk 0:02:22]} 22. Nf3 {[%clk 0:02:26]}  cxd4 {[%clk 0:02:22]} 23. exd4 {[%clk 0:02:25]}  Qc7 {[%clk 0:02:21]} 24. Rd1 {[%clk 0:02:22]}  Qf4 {[%clk 0:02:15]} 25. Qb3 {[%clk 0:02:19]}  Qc7 {[%clk 0:02:07]} 26. c5 {[%clk 0:02:08]}  b6 {[%clk 0:02:06]} 27. cxb6 {[%clk 0:02:02]}  Qxb6 {[%clk 0:02:06]} 28. Qa3 {[%clk 0:01:55]}  Rb8 {[%clk 0:02:05]} 29. b3 {[%clk 0:01:54]}  Nc3 {[%clk 0:02:02]} 30. Rd2 {[%clk 0:01:53]}  Re2 {[%clk 0:01:56]} 31. Qb2 {[%clk 0:01:49]}  Rxd2 {[%clk 0:01:45]} 32. Qxd2 {[%clk 0:01:48]}  Nb5 {[%clk 0:01:42]} 33. Kh1 {[%clk 0:01:45]}  Rd8 {[%clk 0:01:42]} 34. Rd1 {[%clk 0:01:37]}  Rd5 {[%clk 0:01:38]} 35. Qf4 {[%clk 0:01:31]}  Qd6 {[%clk 0:01:34]} 36. Qe3 {[%clk 0:01:25]}  Qf6 {[%clk 0:01:22]} 37. a4 {[%clk 0:01:19]}  Nd6 {[%clk 0:01:21]} 38. Rc1 {[%clk 0:01:00]}  f4 {[%clk 0:01:17]} 39. Qd3 {[%clk 0:00:55]}  Nf5 {[%clk 0:01:16]} 40. Rc4 {[%clk 0:00:51]}  Ne3 {[%clk 0:01:12]} 41. Rc8+ {[%clk 0:00:50]}  Kg7 {[%clk 0:01:12]} 42. Qe4 {[%clk 0:00:48]}  g5 {[%clk 0:01:03]} 43. Qe8 {[%clk 0:00:43]}  Kh6 {[%clk 0:00:51]} 44. Rc6 {[%clk 0:00:42]}  Rd6 {[%clk 0:00:50]} 45. Qf8+ {[%clk 0:00:42]}  Kh5 {[%clk 0:00:48]} 46. Rxd6 {[%clk 0:00:42]}  Qf5 {[%clk 0:00:48]} 47. Qh6+ {[%clk 0:00:41]}  Kg4 {[%clk 0:00:48]} 48. Qh3# {[%clk 0:00:41]} 1-0


[Site "https://www.chess.com"]

[Event "Titled Tuesday Blitz December 27 Early 2022"]
[White "Silva, Miguel Antonio Neto"]
[Black "Fernandez Siles, Luis"]
[WhiteFideId "1911929"]
[BlackFideId "2209420"]
[WhiteElo "2204"]
[BlackElo "2218"]
[Result "0-1"]
[Round "09"]
[TimeControl "180+2"]
[Date "2022.12.27"]
[WhiteClock "0:00:17"]
[BlackClock "0:00:10"]

1. e4 {[%clk 0:02:59]}  c5 {[%clk 0:02:59]} 2. Nf3 {[%clk 0:02:58]}  Nc6 {[%clk 0:02:59]} 3. d4 {[%clk 0:02:58]}  cxd4 {[%clk 0:03:00]} 4. Nxd4 {[%clk 0:02:58]}  Nf6 {[%clk 0:03:01]} 5. Nc3 {[%clk 0:02:57]}  e5 {[%clk 0:03:01]} 6. Ndb5 {[%clk 0:02:57]}  d6 {[%clk 0:03:01]} 7. Nd5 {[%clk 0:02:57]}  Nxd5 {[%clk 0:03:01]} 8. exd5 {[%clk 0:02:57]}  Nb8 {[%clk 0:03:01]} 9. c4 {[%clk 0:02:54]}  Be7 {[%clk 0:03:01]} 10. Be3 {[%clk 0:02:49]}  a6 {[%clk 0:02:53]} 11. Qa4 {[%clk 0:02:24]}  O-O {[%clk 0:02:50]} 12. Nc3 {[%clk 0:02:17]}  Bg5 {[%clk 0:02:41]} 13. Bxg5 {[%clk 0:02:10]}  Qxg5 {[%clk 0:02:40]} 14. Ne4 {[%clk 0:02:05]}  Qg6 {[%clk 0:02:21]} 15. Bd3 {[%clk 0:01:37]}  f5 {[%clk 0:02:20]} 16. Ng3 {[%clk 0:01:28]}  Nd7 {[%clk 0:02:09]} 17. Qc2 {[%clk 0:01:04]}  e4 {[%clk 0:02:02]} 18. Be2 {[%clk 0:01:02]}  Nf6 {[%clk 0:01:56]} 19. f4 {[%clk 0:00:53]}  exf3 {[%clk 0:01:48]} 20. Bxf3 {[%clk 0:00:45]}  Re8+ {[%clk 0:01:46]} 21. Ne2 {[%clk 0:00:27]}  Bd7 {[%clk 0:01:32]} 22. O-O-O {[%clk 0:00:25]}  b5 {[%clk 0:01:25]} 23. c5 {[%clk 0:00:23]}  dxc5 {[%clk 0:01:24]} 24. Kb1 {[%clk 0:00:23]}  Rac8 {[%clk 0:01:18]} 25. Nf4 {[%clk 0:00:23]}  Qf7 {[%clk 0:01:12]} 26. Rhe1 {[%clk 0:00:22]}  g5 {[%clk 0:01:12]} 27. Ne6 {[%clk 0:00:19]}  g4 {[%clk 0:01:00]} 28. Be2 {[%clk 0:00:16]}  Bxe6 {[%clk 0:00:46]} 29. dxe6 {[%clk 0:00:16]}  Qxe6 {[%clk 0:00:46]} 30. b3 {[%clk 0:00:16]}  Ne4 {[%clk 0:00:46]} 31. Bd3 {[%clk 0:00:14]}  c4 {[%clk 0:00:41]} 32. Bxe4 {[%clk 0:00:14]}  fxe4 {[%clk 0:00:41]} 33. b4 {[%clk 0:00:15]}  e3 {[%clk 0:00:36]} 34. Qc3 {[%clk 0:00:14]}  Qe5 {[%clk 0:00:32]} 35. Rd4 {[%clk 0:00:12]}  Kh8 {[%clk 0:00:27]} 36. Kb2 {[%clk 0:00:12]}  h5 {[%clk 0:00:26]} 37. h3 {[%clk 0:00:12]}  Rcd8 {[%clk 0:00:24]} 38. Rxd8 {[%clk 0:00:10]}  Qxc3+ {[%clk 0:00:23]} 39. Kxc3 {[%clk 0:00:11]}  Rxd8 {[%clk 0:00:24]} 40. Rxe3 {[%clk 0:00:12]}  gxh3 {[%clk 0:00:23]} 41. gxh3 {[%clk 0:00:12]}  Kg7 {[%clk 0:00:21]} 42. Re5 {[%clk 0:00:12]}  Kg6 {[%clk 0:00:21]} 43. Re6+ {[%clk 0:00:13]}  Kg5 {[%clk 0:00:20]} 44. Rxa6 {[%clk 0:00:13]}  Rd3+ {[%clk 0:00:20]} 45. Kc2 {[%clk 0:00:14]}  Rxh3 {[%clk 0:00:20]} 46. Rb6 {[%clk 0:00:14]}  Rh2+ {[%clk 0:00:17]} 47. Kc3 {[%clk 0:00:14]}  Rxa2 {[%clk 0:00:16]} 48. Rxb5+ {[%clk 0:00:14]}  Kg4 {[%clk 0:00:15]} 49. Kxc4 {[%clk 0:00:15]}  h4 {[%clk 0:00:16]} 50. Rb8 {[%clk 0:00:15]}  h3 {[%clk 0:00:16]} 51. Rg8+ {[%clk 0:00:15]}  Kf3 {[%clk 0:00:15]} 52. Kb3 {[%clk 0:00:16]}  Ra1 {[%clk 0:00:13]} 53. Rf8+ {[%clk 0:00:16]}  Kg3 {[%clk 0:00:13]} 54. Kb2 {[%clk 0:00:17]}  Ra4 {[%clk 0:00:12]} 55. Kb3 {[%clk 0:00:17]}  Ra1 {[%clk 0:00:13]} 56. Rg8+ {[%clk 0:00:17]}  Kf3 {[%clk 0:00:13]} 57. b5 {[%clk 0:00:17]}  h2 {[%clk 0:00:11]} 58. Rf8+ {[%clk 0:00:17]}  Ke4 {[%clk 0:00:12]} 59. Rh8 {[%clk 0:00:15]}  h1=Q {[%clk 0:00:11]} 60. Rxh1 {[%clk 0:00:15]}  Rxh1 {[%clk 0:00:11]} 61. Kb4 {[%clk 0:00:16]}  Kd5 {[%clk 0:00:11]} 62. Ka5 {[%clk 0:00:17]}  Kc5 {[%clk 0:00:10]} 0-1


[Site "https://www.chess.com"]

[Event "Titled Tuesday Blitz December 27 Early 2022"]
[White "Sreyas Payyappat"]
[Black "Tarnowska, Aleksandra"]
[WhiteFideId "46674969"]
[BlackFideId "1180967"]
[WhiteElo "2076"]
[BlackElo "1835"]
[Result "0-1"]
[Round "09"]
[TimeControl "180+2"]
[Date "2022.12.27"]
[WhiteClock "0:00:11"]
[BlackClock "0:00:06"]

1. e4 {[%clk 0:03:00]}  c5 {[%clk 0:03:00]} 2. Nf3 {[%clk 0:03:00]}  e6 {[%clk 0:03:00]} 3. d4 {[%clk 0:02:57]}  cxd4 {[%clk 0:03:01]} 4. Nxd4 {[%clk 0:02:58]}  a6 {[%clk 0:03:01]} 5. Nc3 {[%clk 0:02:56]}  Qc7 {[%clk 0:03:02]} 6. Be3 {[%clk 0:02:55]}  b5 {[%clk 0:03:02]} 7. Bd3 {[%clk 0:02:51]}  Bb7 {[%clk 0:03:02]} 8. O-O {[%clk 0:02:46]}  Nf6 {[%clk 0:03:02]} 9. f3 {[%clk 0:02:39]}  Be7 {[%clk 0:02:58]} 10. Qd2 {[%clk 0:02:37]}  d5 {[%clk 0:02:53]} 11. Rae1 {[%clk 0:02:26]}  b4 {[%clk 0:02:22]} 12. Na4 {[%clk 0:02:18]}  dxe4 {[%clk 0:02:20]} 13. fxe4 {[%clk 0:02:16]}  Nxe4 {[%clk 0:02:03]} 14. Bxe4 {[%clk 0:02:14]}  Bxe4 {[%clk 0:02:03]} 15. Bf4 {[%clk 0:02:08]}  Qb7 {[%clk 0:01:43]} 16. Nb3 {[%clk 0:02:03]}  Nd7 {[%clk 0:01:20]} 17. Rd1 {[%clk 0:01:45]}  Bc6 {[%clk 0:01:09]} 18. Na5 {[%clk 0:01:09]}  Qb5 {[%clk 0:00:17]} 19. Nxc6 {[%clk 0:01:00]}  Qxc6 {[%clk 0:00:18]} 20. b3 {[%clk 0:00:52]}  Rd8 {[%clk 0:00:18]} 21. Nb2 {[%clk 0:00:50]}  O-O {[%clk 0:00:18]} 22. Nc4 {[%clk 0:00:49]}  Nf6 {[%clk 0:00:15]} 23. Qe2 {[%clk 0:00:43]}  Qe4 {[%clk 0:00:13]} 24. Be3 {[%clk 0:00:31]}  Bc5 {[%clk 0:00:06]} 25. Rde1 {[%clk 0:00:20]}  Bxe3+ {[%clk 0:00:04]} 26. Nxe3 {[%clk 0:00:18]}  Nd5 {[%clk 0:00:04]} 27. Nxd5 {[%clk 0:00:18]}  Qxd5 {[%clk 0:00:03]} 28. Qxa6 {[%clk 0:00:18]}  Qd4+ {[%clk 0:00:03]} 29. Rf2 {[%clk 0:00:17]}  Rc8 {[%clk 0:00:02]} 30. Qe2 {[%clk 0:00:15]}  Rc3 {[%clk 0:00:02]} 31. Rd1 {[%clk 0:00:15]}  Qh4 {[%clk 0:00:01]} 32. g3 {[%clk 0:00:15]}  Qh6 {[%clk 0:00:01]} 33. Qd2 {[%clk 0:00:13]}  Qg6 {[%clk 0:00:01]} 34. Re1 {[%clk 0:00:12]}  h6 {[%clk 0:00:01]} 35. Re3 {[%clk 0:00:12]}  Rfc8 {[%clk 0:00:02]} 36. Rxc3 {[%clk 0:00:12]}  Rxc3 {[%clk 0:00:03]} 37. Kf1 {[%clk 0:00:10]}  Kh7 {[%clk 0:00:03]} 38. Ke1 {[%clk 0:00:11]}  Qe4+ {[%clk 0:00:04]} 39. Kd1 {[%clk 0:00:11]}  Re3 {[%clk 0:00:03]} 40. Kc1 {[%clk 0:00:10]}  Re1+ {[%clk 0:00:03]} 41. Kb2 {[%clk 0:00:11]}  Qe5+ {[%clk 0:00:04]} 42. c3 {[%clk 0:00:09]}  bxc3+ {[%clk 0:00:05]} 43. Qxc3 {[%clk 0:00:10]}  Rb1+ {[%clk 0:00:05]} 44. Kc2 {[%clk 0:00:10]}  Rc1+ {[%clk 0:00:04]} 45. Kxc1 {[%clk 0:00:10]}  Qxc3+ {[%clk 0:00:05]} 46. Rc2 {[%clk 0:00:10]}  Qe3+ {[%clk 0:00:05]} 47. Kb2 {[%clk 0:00:11]}  Qe1 {[%clk 0:00:06]} 0-1


[Site "https://www.chess.com"]

[Event "Titled Tuesday Blitz December 27 Early 2022"]
[White "Starozhilov, Leonid"]
[Black "Zakhartsov, Vladimir"]
[WhiteFideId "14106752"]
[BlackFideId "4145097"]
[WhiteElo "2313"]
[BlackElo "2552"]
[Result "1/2-1/2"]
[Round "09"]
[TimeControl "180+2"]
[Date "2022.12.27"]
[WhiteClock "0:00:05"]
[BlackClock "0:00:04"]

1. e4 {[%clk 0:03:00]}  c5 {[%clk 0:02:58]} 2. Nf3 {[%clk 0:03:00]}  Nc6 {[%clk 0:02:58]} 3. Bb5 {[%clk 0:03:00]}  g6 {[%clk 0:02:57]} 4. O-O {[%clk 0:02:59]}  Bg7 {[%clk 0:02:56]} 5. Nc3 {[%clk 0:02:58]}  Nf6 {[%clk 0:02:54]} 6. Bxc6 {[%clk 0:02:53]}  dxc6 {[%clk 0:02:51]} 7. d3 {[%clk 0:02:54]}  O-O {[%clk 0:02:50]} 8. h3 {[%clk 0:02:54]}  e5 {[%clk 0:02:30]} 9. Nxe5 {[%clk 0:02:46]}  Nxe4 {[%clk 0:02:26]} 10. Nxe4 {[%clk 0:02:46]}  Bxe5 {[%clk 0:02:26]} 11. Bh6 {[%clk 0:02:17]}  Re8 {[%clk 0:02:21]} 12. Qf3 {[%clk 0:02:16]}  Bf5 {[%clk 0:02:06]} 13. Ng3 {[%clk 0:01:56]}  Be6 {[%clk 0:02:03]} 14. c3 {[%clk 0:01:40]}  Qd5 {[%clk 0:01:58]} 15. Ne4 {[%clk 0:01:32]}  f5 {[%clk 0:01:55]} 16. Ng5 {[%clk 0:01:20]}  Qxf3 {[%clk 0:01:54]} 17. Nxf3 {[%clk 0:01:21]}  Bf6 {[%clk 0:01:54]} 18. Bf4 {[%clk 0:01:15]}  Bd5 {[%clk 0:01:52]} 19. Rfe1 {[%clk 0:01:03]}  Rxe1+ {[%clk 0:01:42]} 20. Rxe1 {[%clk 0:00:57]}  Bxa2 {[%clk 0:01:41]} 21. c4 {[%clk 0:00:57]}  b5 {[%clk 0:01:19]} 22. Re6 {[%clk 0:00:42]}  Bg7 {[%clk 0:00:49]} 23. Rxc6 {[%clk 0:00:41]}  bxc4 {[%clk 0:00:42]} 24. dxc4 {[%clk 0:00:42]}  Bxb2 {[%clk 0:00:42]} 25. Rxc5 {[%clk 0:00:42]}  a5 {[%clk 0:00:43]} 26. Be5 {[%clk 0:00:17]}  Bxe5 {[%clk 0:00:39]} 27. Nxe5 {[%clk 0:00:18]}  a4 {[%clk 0:00:39]} 28. Rc7 {[%clk 0:00:18]}  a3 {[%clk 0:00:35]} 29. Nd7 {[%clk 0:00:18]}  Bxc4 {[%clk 0:00:22]} 30. Nf6+ {[%clk 0:00:17]}  Kf8 {[%clk 0:00:22]} 31. Nxh7+ {[%clk 0:00:17]}  Ke8 {[%clk 0:00:23]} 32. Nf6+ {[%clk 0:00:17]}  Kd8 {[%clk 0:00:23]} 33. Rxc4 {[%clk 0:00:10]}  a2 {[%clk 0:00:23]} 34. Rc1 {[%clk 0:00:11]}  a1=Q {[%clk 0:00:23]} 35. Rxa1 {[%clk 0:00:11]}  Rxa1+ {[%clk 0:00:23]} 36. Kh2 {[%clk 0:00:12]}  Rd1 {[%clk 0:00:20]} 37. Nh7 {[%clk 0:00:11]}  Ke7 {[%clk 0:00:18]} 38. Kg3 {[%clk 0:00:10]}  Rd3+ {[%clk 0:00:17]} 39. f3 {[%clk 0:00:11]}  Rd4 {[%clk 0:00:16]} 40. h4 {[%clk 0:00:08]}  Kf7 {[%clk 0:00:16]} 41. Ng5+ {[%clk 0:00:08]}  Kf6 {[%clk 0:00:16]} 42. Nh7+ {[%clk 0:00:08]}  Kg7 {[%clk 0:00:16]} 43. Ng5 {[%clk 0:00:09]}  Kh6 {[%clk 0:00:16]} 44. Nf7+ {[%clk 0:00:09]}  Kh5 {[%clk 0:00:16]} 45. Ne5 {[%clk 0:00:08]}  Ra4 {[%clk 0:00:14]} 46. Nd3 {[%clk 0:00:06]}  Ra1 {[%clk 0:00:05]} 47. Nf4+ {[%clk 0:00:06]}  Kh6 {[%clk 0:00:05]} 48. Nh3 {[%clk 0:00:06]}  Rh1 {[%clk 0:00:04]} 49. Nf4 {[%clk 0:00:06]}  Kg7 {[%clk 0:00:03]} 50. Nh3 {[%clk 0:00:06]}  Kf6 {[%clk 0:00:04]} 51. Nf4 {[%clk 0:00:06]}  Ra1 {[%clk 0:00:03]} 52. Nd5+ {[%clk 0:00:06]}  Ke5 {[%clk 0:00:03]} 53. Nf4 {[%clk 0:00:07]}  Ra6 {[%clk 0:00:02]} 54. Nd3+ {[%clk 0:00:07]}  Kd4 {[%clk 0:00:03]} 55. Nf4 {[%clk 0:00:08]}  Ke3 {[%clk 0:00:03]} 56. Nd5+ {[%clk 0:00:07]}  Ke2 {[%clk 0:00:04]} 57. Nf4+ {[%clk 0:00:04]}  Kf1 {[%clk 0:00:04]} 58. Nh3 {[%clk 0:00:04]}  Ra2 {[%clk 0:00:03]} 59. Nf4 {[%clk 0:00:05]}  Rb2 {[%clk 0:00:04]} 60. Kh3 {[%clk 0:00:03]}  Rb6 {[%clk 0:00:02]} 61. Kg3 {[%clk 0:00:03]}  Kg1 {[%clk 0:00:03]} 62. Ne2+ {[%clk 0:00:03]}  Kh1 {[%clk 0:00:03]} 63. Nf4 {[%clk 0:00:04]}  Rb2 {[%clk 0:00:03]} 64. Kh3 {[%clk 0:00:04]}  Rb6 {[%clk 0:00:02]} 65. Kg3 {[%clk 0:00:04]}  Ra6 {[%clk 0:00:02]} 66. Kh3 {[%clk 0:00:04]}  Ra2 {[%clk 0:00:02]} 67. Kg3 {[%clk 0:00:05]}  Rc2 {[%clk 0:00:02]} 68. Kh3 {[%clk 0:00:05]}  Rc6 {[%clk 0:00:03]} 69. Kg3 {[%clk 0:00:05]}  Kg1 {[%clk 0:00:04]} 70. Ne2+ {[%clk 0:00:05]}  Kf1 {[%clk 0:00:04]} 71. Nf4 {[%clk 0:00:06]}  Ra6 {[%clk 0:00:04]} 72. Nh3 {[%clk 0:00:05]}  Ra4 {[%clk 0:00:03]} 73. Nf4 {[%clk 0:00:05]}  Ra6 {[%clk 0:00:04]} 1/2-1/2


[Site "https://www.chess.com"]